bitfinex/quotes_BTCUSD_20220202
["timestamp","ask_amount","ask_price","bid_price","bid_amount"]
[1643828757066,0.00369084,37564.0,37559.0,0.0505]
[1643828757265,0.00369084,37564.0,37560.0,0.0005]
[1643828757266,0.353485,37563.0,37560.0,0.0005]
[1643828757464,0.09282894,37562.0,37560.0,0.0005]
[1643828757690,0.044138,37561.0,37560.0,0.0005]
[1643828761843,0.044638,37561.0,37560.0,0.0005]
[1643828763548,0.0005,37561.0,37560.0,0.0005]
[1643828765395,0.1,37565.0,37560.0,0.0005]
[1643828765396,0.0005,37564.0,37560.0,0.0005]
[1643828766099,0.09755759,37564.0,37560.0,0.0005]
[1643828766296,0.0005,37563.0,37560.0,0.0005]
[1643828766697,0.0005,37564.0,37560.0,0.0505]
[1643828766896,0.0005,37564.0,37561.0,0.0005]
[1643828767298,0.0005,37564.0,37560.0,0.00104265]
[1643828767897,0.0005,37564.0,37562.0,0.37331045]
[1643828768097,0.0005,37564.0,37563.0,0.6005]
[1643828768698,0.0005,37564.0,37563.0,1.15481421]
[1643828768953,0.0005,37567.0,37563.0,1.20481421]
[1643828769253,0.2601695,37579.0,37564.0,0.522385]
[1643828769254,0.0005,37578.0,37564.0,0.522385]
[1643828769453,0.22705064,37574.0,37572.0,0.08535225]
[1643828769653,0.22705064,37574.0,37568.0,0.34992692]
[1643828769855,0.22705064,37574.0,37568.0,0.05]
[1643828770257,0.22705064,37574.0,37564.0,0.1684]
[1643828770456,0.22705064,37574.0,37566.0,0.00020179]
[1643828770754,0.26716261,37570.0,37569.0,0.05]
[1643828770954,0.12097094,37570.0,37569.0,0.05]
[1643828772159,0.17097094,37570.0,37569.0,0.05]
[1643828772795,0.47097094,37570.0,37569.0,0.05]
[1643828773192,0.47097094,37570.0,37566.0,0.00020179]
[1643828773193,0.3,37567.0,37566.0,0.00020179]
[1643828773393,0.97255256,37567.0,37566.0,0.00020179]
[1643828773791,1.37255256,37567.0,37566.0,0.00020179]
[1643828773991,1.37255256,37567.0,37554.0,0.1192]
[1643828773992,1.75530705,37567.0,37554.0,0.1192]
[1643828774195,0.066587,37565.0,37554.0,0.1192]
[1643828774393,0.64866447,37564.0,37559.0,0.05]
[1643828774592,0.044138,37563.0,37559.0,0.05]
[1643828774792,0.28506355,37562.0,37560.0,0.0005]
[1643828775095,2.01964684,37561.0,37560.0,0.0005]
[1643828775490,2.10746339,37561.0,37560.0,0.0005]
[1643828775890,1.60746339,37561.0,37560.0,0.0005]
[1643828776092,1.00051168,37561.0,37560.0,0.0005]
[1643828776291,0.90051168,37561.0,37560.0,0.0005]
[1643828776748,0.85,37560.0,37559.0,0.00058817]
[1643828777046,1.74319869,37560.0,37559.0,0.00058817]
[1643828777649,0.11660568,37559.0,37558.0,0.05]
[1643828777849,1.91812865,37559.0,37558.0,0.05058818]
[1643828778048,0.65,37558.0,37552.0,0.00235305]
[1643828778346,0.06661,37556.0,37552.0,0.00235305]
[1643828778546,0.60037488,37555.0,37552.0,0.00235305]
[1643828778747,0.144138,37554.0,37552.0,0.00235305]
[1643828778946,1.2775214,37553.0,37552.0,0.00235305]
[1643828779146,2.04757852,37553.0,37542.0,0.8734]
[1643828779348,0.20103346,37543.0,37542.0,0.3685]
[1643828779547,0.33611538,37543.0,37539.0,0.01]
[1643828779747,0.33611538,37543.0,37534.0,0.1208]
[1643828780404,0.27484271,37538.0,37534.0,0.1208]
[1643828780604,0.27484271,37538.0,37537.0,0.75]
[1643828780801,0.27484271,37538.0,37537.0,0.04]
[1643828781702,0.27484271,37538.0,37537.0,0.44]
[1643828782704,0.27484271,37538.0,37537.0,0.04]
[1643828783002,0.32484271,37538.0,37537.0,0.04]
[1643828783602,0.32484271,37538.0,37531.0,0.01]
[1643828783603,1.15,37537.0,37531.0,0.01]
[1643828783804,0.59526554,37536.0,37531.0,0.01]
[1643828784055,0.59526554,37536.0,37532.0,0.02046611]
[1643828784256,0.52010836,37535.0,37532.0,0.02046611]
[1643828784555,0.52010836,37535.0,37532.0,0.07046611]
[1643828784556,0.044138,37534.0,37532.0,0.07046611]
[1643828784859,0.21662336,37535.0,37532.0,0.05]
[1643828785153,0.21662336,37535.0,37532.0,0.05020645]
[1643828785154,0.353485,37534.0,37532.0,0.05020645]
[1643828785754,0.72311561,37533.0,37532.0,0.05020645]
[1643828785957,0.26725361,37533.0,37532.0,0.05]
[1643828786155,0.31725361,37533.0,37532.0,0.05]
[1643828786353,0.31725361,37533.0,37531.0,0.01020645]
[1643828786354,0.24235632,37532.0,37531.0,0.01020645]
[1643828786556,0.79830781,37532.0,37531.0,0.01020645]
[1643828787155,0.79830781,37532.0,37531.0,0.01]
[1643828788101,0.78919238,37532.0,37531.0,0.01]
[1643828789303,0.80916295,37532.0,37531.0,0.005]
[1643828789504,0.95916295,37532.0,37531.0,0.005]
[1643828789905,0.90916295,37532.0,37531.0,0.005]
[1643828790106,0.80916295,37532.0,37531.0,0.005]
[1643828790304,0.90916295,37532.0,37531.0,0.005]
[1643828790509,0.90929239,37532.0,37531.0,0.005]
[1643828792149,0.69597076,37532.0,37531.0,0.005]
[1643828792349,0.59597076,37532.0,37531.0,0.005]
[1643828792750,0.79180337,37532.0,37531.0,0.005]
[1643828792950,0.79810152,37532.0,37531.0,0.005]
[1643828793153,0.59597076,37532.0,37531.0,0.005]
[1643828793350,0.24248576,37532.0,37531.0,0.005]
[1643828793550,0.35361444,37532.0,37531.0,0.555]
[1643828793752,0.00012944,37532.0,37531.0,0.555]
[1643828794650,0.00012944,37532.0,37531.0,1.255]
[1643828794851,0.00012944,37532.0,37531.0,1.658485]
[1643828795052,0.00012944,37532.0,37531.0,1.708485]
[1643828795303,0.05012944,37535.0,37531.0,1.70854961]
[1643828795500,0.05012944,37535.0,37532.0,0.353485]
[1643828795897,0.05012944,37535.0,37534.0,0.05]
[1643828796098,0.05012944,37535.0,37534.0,1.253485]
[1643828796499,0.00012944,37535.0,37534.0,1.253485]
[1643828797500,0.08139517,37535.0,37533.0,0.05058197]
[1643828797700,0.13139517,37535.0,37533.0,0.05058197]
[1643828797901,0.22395997,37534.0,37533.0,0.05]
[1643828798948,0.27395997,37534.0,37533.0,0.05]
[1643828799344,0.72744497,37534.0,37533.0,0.05]
[1643828799546,1.17744497,37534.0,37533.0,0.05]
[1643828799945,1.07744497,37534.0,37533.0,0.05]
[1643828800150,1.17744497,37534.0,37533.0,0.05]
[1643828800349,1.17757414,37534.0,37533.0,0.05]
[1643828800847,0.72757414,37534.0,37533.0,0.05]
[1643828801045,0.62757414,37534.0,37533.0,0.05]
[1643828801449,0.36373733,37534.0,37533.0,0.05]
[1643828801848,0.46373733,37534.0,37533.0,0.05]
[1643828802249,0.36373733,37534.0,37533.0,0.05]
[1643828802448,0.56321944,37534.0,37533.0,0.05]
[1643828802695,0.66321944,37534.0,37533.0,0.05]
[1643828803092,0.66321944,37534.0,37533.0,0.045]
[1643828803291,0.71321944,37534.0,37532.0,0.00055557]
[1643828803497,0.84832389,37533.0,37532.0,0.00055557]
[1643828804192,0.3557205,37532.0,37531.0,0.01056242]
[1643828804394,0.96779985,37532.0,37531.0,0.00556242]
[1643828804691,1.06779985,37532.0,37531.0,0.00556242]
[1643828805095,1.1,37531.0,37530.0,0.045]
[1643828805293,1.11738775,37531.0,37530.0,0.0340012]
[1643828805792,1.11738775,37531.0,37530.0,0.03456363]
[1643828806448,1.18404175,37531.0,37530.0,0.0340012]
[1643828806649,0.45068956,37531.0,37530.0,0.0340012]
[1643828806853,0.57624511,37531.0,37530.0,0.0340012]
[1643828807049,0.57624511,37531.0,37521.0,0.01]
[1643828807249,0.25563705,37524.0,37521.0,0.01]
[1643828807450,0.09488209,37522.0,37521.0,0.51]
[1643828807649,0.09488209,37522.0,37521.0,0.01]
[1643828807850,0.49836709,37522.0,37521.0,0.01055877]
[1643828808854,0.49836709,37522.0,37521.0,0.01]
[1643828809254,0.37229635,37524.0,37521.0,0.01]
[1643828809255,0.05,37524.0,37521.0,0.01]
[1643828809454,0.05,37524.0,37521.0,0.0105]
[1643828809657,0.05,37524.0,37522.0,0.353485]
[1643828809855,0.05,37524.0,37522.0,0.403485]
[1643828810057,0.05,37524.0,37523.0,1.903485]
[1643828810302,0.10400524,37525.0,37523.0,1.903485]
[1643828810496,0.10400524,37525.0,37524.0,1.603485]
[1643828810694,0.10400524,37525.0,37524.0,1.653485]
[1643828810894,0.32342802,37535.0,37524.0,1.3]
[1643828811598,0.05,37530.0,37526.0,0.00017479]
[1643828812195,0.30548855,37529.0,37526.0,0.00017479]
[1643828812396,0.10318408,37527.0,37526.0,0.85]
[1643828812596,0.30548855,37529.0,37526.0,0.85017479]
[1643828812997,0.05,37530.0,37526.0,0.85017479]
[1643828813797,0.05,37530.0,37526.0,0.85]
[1643828814046,0.05,37530.0,37526.0,0.85057793]
[1643828814349,0.05,37530.0,37527.0,0.07732589]
[1643828814747,0.05,37530.0,37527.0,0.05]
[1643828814946,0.05,37530.0,37526.0,0.96663]
[1643828815147,0.05,37530.0,37526.0,0.9]
[1643828815348,0.00012996,37528.0,37527.0,1.25059035]
[1643828815849,0.00012996,37528.0,37527.0,1.30059035]
[1643828816046,0.00012996,37528.0,37527.0,1.3]
[1643828816449,0.03512996,37530.0,37528.0,0.85]
[1643828817451,0.06663526,37539.0,37529.0,0.19678183]
[1643828817452,0.01487004,37532.0,37529.0,0.19678183]
[1643828817697,0.01487004,37532.0,37530.0,0.353485]
[1643828817997,0.01487004,37532.0,37531.0,1.8801993]
[1643828818198,0.01487004,37532.0,37531.0,2.2336843]
[1643828818397,0.03512996,37534.0,37531.0,0.59995568]
[1643828818599,0.03512996,37534.0,37527.0,0.00059035]
[1643828818600,0.03512996,37534.0,37527.0,0.24997056]
[1643828818897,0.03512996,37534.0,37529.0,0.00055263]
[1643828819098,0.10030432,37532.0,37529.0,0.00055263]
[1643828819798,0.10030432,37532.0,37526.0,0.1]
[1643828820203,0.10030432,37532.0,37529.0,0.00055263]
[1643828820599,0.00013688,37531.0,37529.0,0.00055263]
[1643828820901,0.00013688,37531.0,37526.0,0.1]
[1643828821098,0.00013688,37531.0,37529.0,0.00055263]
[1643828822156,0.19515703,37531.0,37526.0,0.05]
[1643828822353,0.22910363,37528.0,37526.0,0.05]
[1643828822754,0.59362277,37527.0,37526.0,0.05]
[1643828822954,0.59363476,37527.0,37526.0,0.05]
[1643828823154,0.19363476,37527.0,37526.0,0.05]
[1643828823351,0.19363476,37527.0,37521.0,0.5275]
[1643828823553,0.25643369,37522.0,37521.0,0.4077]
[1643828823752,0.19363476,37527.0,37521.0,0.01]
[1643828824353,0.07721493,37526.0,37521.0,0.11555599]
[1643828824553,0.03512996,37527.0,37522.0,0.05]
[1643828824757,0.27713845,37526.0,37522.0,0.05]
[1643828824954,0.03512996,37527.0,37522.0,0.05]
[1643828825203,0.03525077,37527.0,37522.0,0.05]
[1643828826101,0.31510645,37527.0,37522.0,0.05]
[1643828827803,0.50838397,37527.0,37522.0,0.05]
[1643828828004,0.31510645,37527.0,37522.0,0.05]
[1643828828206,0.35567791,37526.0,37522.0,0.05]
[1643828828404,0.19424404,37525.0,37522.0,0.05]
[1643828828603,0.29424404,37525.0,37522.0,0.05]
[1643828829049,0.353485,37524.0,37522.0,0.05]
[1643828829250,0.2393131,37523.0,37522.0,0.05]
[1643828829451,0.3334511,37523.0,37522.0,0.05]
[1643828829952,0.094138,37523.0,37522.0,0.05]
[1643828830150,0.044138,37523.0,37522.0,0.05]
[1643828831253,0.81116166,37523.0,37522.0,0.05]
[1643828832052,0.91116166,37523.0,37522.0,0.05]
[1643828832257,0.65,37522.0,37521.0,0.01]
[1643828832558,0.65,37522.0,37513.0,0.0005]
[1643828832559,0.06667032,37519.0,37513.0,0.0005]
[1643828832806,0.29108096,37517.0,37502.0,0.0005]
[1643828832999,0.353485,37516.0,37501.0,0.0105]
[1643828833398,0.38094288,37515.0,37514.0,0.00060917]
[1643828833598,0.5245787,37515.0,37514.0,0.00060917]
[1643828834199,0.30595015,37514.0,37502.0,0.0005]
[1643828834397,0.453485,37513.0,37501.0,0.0105]
[1643828834599,0.744138,37512.0,37507.0,0.00243706]
[1643828834800,1.12359391,37512.0,37510.0,0.05]
[1643828835401,0.5,37510.0,37501.0,0.01]
[1643828835604,0.6085198,37509.0,37504.0,0.00243713]
[1643828835801,0.25295238,37508.0,37504.0,0.00243713]
[1643828836000,0.20260406,37507.0,37495.0,0.133358]
[1643828836201,1.1,37506.0,37492.0,0.01]
[1643828836448,0.08619769,37493.0,37492.0,0.01]
[1643828836648,0.30906604,37505.0,37492.0,0.01]
[1643828836847,0.353485,37504.0,37492.0,0.01]
[1643828837048,0.26249863,37499.0,37492.0,0.01]
[1643828837248,0.31249863,37499.0,37492.0,0.01]
[1643828837648,0.26249863,37499.0,37492.0,0.01]
[1643828838046,0.26249863,37499.0,37494.0,0.00017298]
[1643828838648,0.27598878,37503.0,37494.0,0.00017298]
[1643828838848,0.21144618,37510.0,37502.0,0.09589157]
[1643828839049,0.353485,37509.0,37502.0,0.14589157]
[1643828839250,0.26962274,37509.0,37502.0,0.05]
[1643828839450,0.353485,37508.0,37498.0,0.25007473]
[1643828839651,0.28913451,37504.0,37498.0,0.05]
[1643828839859,0.05,37508.0,37499.0,0.08501482]
[1643828840049,0.05,37508.0,37500.0,0.24107228]
[1643828840301,0.05012967,37508.0,37505.0,0.10150702]
[1643828840803,0.00057649,37506.0,37505.0,0.10150702]
[1643828841001,0.00057649,37506.0,37503.0,0.19668996]
[1643828841203,0.00057649,37506.0,37502.0,0.05057039]
[1643828841402,0.04570616,37508.0,37503.0,1.65]
[1643828841802,0.00058977,37506.0,37503.0,1.7]
[1643828842202,0.00058977,37506.0,37505.0,1.03996868]
[1643828842404,0.00058977,37506.0,37505.0,1.38301156]
[1643828842602,0.04570616,37508.0,37505.0,1.43301156]
[1643828843009,0.04570616,37508.0,37506.0,0.1968657]
[1643828843203,0.04570616,37508.0,37507.0,2.003485]
[1643828843404,0.00012967,37508.0,37507.0,2.003485]
[1643828844649,0.00012967,37508.0,37507.0,2.153485]
[1643828845052,0.00012967,37508.0,37507.0,2.103485]
[1643828846552,0.00012967,37508.0,37507.0,2.303485]
[1643828846952,0.00012967,37508.0,37507.0,2.153485]
[1643828847153,0.00012967,37508.0,37507.0,2.103485]
[1643828847797,0.00012967,37508.0,37507.0,2.153485]
[1643828848001,0.00012967,37508.0,37507.0,2.103485]
[1643828848199,0.00012967,37508.0,37507.0,2.153485]
[1643828848397,0.02127542,37510.0,37508.0,1.5]
[1643828848596,0.02127542,37510.0,37509.0,1.903485]
[1643828848998,0.02127542,37510.0,37509.0,2.20282458]
[1643828849500,0.02872458,37512.0,37509.0,2.20282458]
[1643828849700,0.02872458,37512.0,37509.0,1.84933958]
[1643828850102,0.02872458,37512.0,37509.0,1.55]
[1643828850299,0.02872458,37512.0,37508.0,0.05]
[1643828850500,0.08805535,37510.0,37508.0,0.05]
[1643828851000,0.36337562,37510.0,37508.0,0.05]
[1643828851201,0.27532027,37510.0,37508.0,0.05]
[1643828851648,0.00058312,37511.0,37508.0,0.05]
[1643828852248,0.02872458,37512.0,37508.0,0.05]
[1643828852650,0.00058312,37511.0,37508.0,0.05]
[1643828852849,0.00058312,37511.0,37508.0,0.13266303]
[1643828853049,0.00058312,37511.0,37508.0,0.18266303]
[1643828853452,0.02872458,37512.0,37508.0,0.1]
[1643828853851,0.00058415,37511.0,37508.0,0.1]
[1643828854650,0.02872458,37512.0,37508.0,0.2]
[1643828855050,0.00058415,37511.0,37509.0,0.07866533]
[1643828855297,0.00071164,37511.0,37510.0,2.003485]
[1643828855796,0.00071164,37511.0,37510.0,2.053485]
[1643828856000,0.00012749,37511.0,37510.0,2.053485]
[1643828856597,0.33953534,37525.0,37510.0,2.053485]
[1643828856598,0.20826572,37524.0,37511.0,1.65]
[1643828856797,0.26359581,37522.0,37512.0,0.453485]
[1643828857006,0.26359581,37522.0,37513.0,0.353485]
[1643828857199,0.20826572,37531.0,37513.0,0.453485]
[1643828857398,0.20826572,37533.0,37514.0,0.453485]
[1643828857597,0.05,37519.0,37517.0,0.2554712]
[1643828857797,0.05,37519.0,37518.0,1.65430531]
[1643828858398,0.20826572,37525.0,37518.0,1.65430531]
[1643828858702,0.20826572,37525.0,37519.0,1.553485]
[1643828858948,0.27410167,37526.0,37519.0,1.553485]
[1643828859453,0.25714304,37524.0,37520.0,0.6]
[1643828859649,0.27010167,37526.0,37520.0,0.6]
[1643828859949,0.00040448,37521.0,37520.0,0.65]
[1643828860750,0.19100596,37528.0,37520.0,0.65]
[1643828860951,0.00060808,37522.0,37520.0,0.65]
[1643828861751,0.00060808,37522.0,37521.0,1.653485]
[1643828861951,0.00060808,37522.0,37521.0,0.353485]
[1643828862351,0.00060808,37523.0,37521.0,0.22559784]
[1643828862806,0.00060808,37523.0,37521.0,0.27559784]
[1643828863006,0.26189643,37527.0,37521.0,0.05]
[1643828863007,0.09369729,37525.0,37521.0,0.05]
[1643828863206,0.19208652,37524.0,37516.0,0.17006057]
[1643828863404,0.19387192,37524.0,37517.0,0.05]
[1643828863805,0.05,37523.0,37517.0,0.07060817]
[1643828864008,0.05,37523.0,37517.0,0.05]
[1643828864207,0.09125149,37519.0,37517.0,0.05]
[1643828864506,0.19145903,37522.0,37516.0,0.05006057]
[1643828864707,0.00040521,37522.0,37516.0,0.05006057]
[1643828865308,0.00053227,37522.0,37516.0,0.28748736]
[1643828865607,0.00012706,37522.0,37516.0,0.28748736]
[1643828865807,0.00012706,37522.0,37518.0,0.08870181]
[1643828866010,0.00060882,37521.0,37518.0,0.08870181]
[1643828866209,0.00060882,37521.0,37519.0,0.353485]
[1643828866651,0.00012706,37522.0,37519.0,0.353485]
[1643828867046,0.00073588,37522.0,37518.0,0.13870181]
[1643828867947,0.00012706,37522.0,37518.0,0.13870181]
[1643828868147,0.00071509,37522.0,37518.0,0.13870181]
[1643828868549,0.00071509,37522.0,37519.0,0.353485]
[1643828868949,0.00071509,37522.0,37518.0,0.13870181]
[1643828869154,0.00012706,37522.0,37518.0,0.13870181]
[1643828869449,0.00071509,37522.0,37518.0,0.13870181]
[1643828870315,0.00012706,37522.0,37520.0,6.019e-05]
[1643828870517,0.00068125,37522.0,37520.0,6.019e-05]
[1643828871217,0.00068125,37522.0,37521.0,1.803485]
[1643828871418,0.00068125,37522.0,37521.0,1.88480246]
[1643828871622,0.00068125,37522.0,37521.0,2.03480246]
[1643828872016,0.00012706,37522.0,37521.0,2.03480246]
[1643828872619,0.04512706,37523.0,37522.0,1.12156514]
[1643828872818,0.04512706,37523.0,37522.0,0.37156514]
[1643828873415,0.04512706,37523.0,37520.0,6.019e-05]
[1643828873816,0.353485,37522.0,37520.0,6.019e-05]
[1643828874457,0.72733523,37522.0,37520.0,6.019e-05]
[1643828874756,0.044138,37521.0,37520.0,6.019e-05]
[1643828875554,0.044138,37521.0,37512.0,0.20751352]
[1643828875753,0.42385023,37522.0,37511.0,0.76466776]
[1643828875754,0.42385023,37522.0,37515.0,0.01879694]
[1643828876153,0.09606072,37516.0,37511.0,0.91410529]
[1643828876357,0.32321852,37522.0,37515.0,0.25285199]
[1643828876557,0.05,37516.0,37513.0,0.20751352]
[1643828876754,0.05,37516.0,37513.0,0.05]
[1643828877356,0.01366597,37516.0,37514.0,0.353485]
[1643828877554,0.01366597,37516.0,37513.0,0.353485]
[1643828877801,0.01366597,37516.0,37514.0,0.1]
[1643828878005,0.01366597,37516.0,37515.0,1.553485]
[1643828878201,0.01366597,37516.0,37515.0,1.84158201]
[1643828878401,0.03633403,37518.0,37515.0,1.94158201]
[1643828878603,0.03633403,37518.0,37516.0,0.353485]
[1643828878802,0.03633403,37518.0,37517.0,0.05]
[1643828879001,0.03633403,37518.0,37517.0,1.903485]
[1643828879404,0.21032902,37525.0,37520.0,0.09090565]
[1643828879805,0.21032902,37525.0,37520.0,0.14090565]
[1643828880003,0.20751352,37524.0,37520.0,0.14090565]
[1643828880203,0.20751352,37524.0,37505.0,0.6862]
[1643828880204,0.00061176,37524.0,37512.0,0.1226]
[1643828880404,0.05,37521.0,37516.0,0.05]
[1643828880804,0.045,37521.0,37516.0,0.05]
[1643828881004,0.045,37521.0,37517.0,0.23699049]
[1643828881203,0.045,37521.0,37518.0,0.08736842]
[1643828881449,0.00061178,37520.0,37518.0,0.08736842]
[1643828881653,0.00061178,37520.0,37518.0,0.09736842]
[1643828881848,0.00061178,37520.0,37518.0,0.14736842]
[1643828882050,0.00061178,37520.0,37519.0,2.003485]
[1643828882249,0.00061178,37520.0,37519.0,2.103485]
[1643828882951,0.04540744,37521.0,37519.0,2.103485]
[1643828883149,0.04540744,37521.0,37520.0,1.103485]
[1643828883349,0.04540744,37521.0,37520.0,1.253485]
[1643828883551,0.045,37521.0,37520.0,1.253485]
[1643828884551,0.045,37521.0,37520.0,2.203485]
[1643828884852,0.045,37521.0,37520.0,2.153485]
[1643828885054,0.00058592,37522.0,37520.0,2.153485]
[1643828885310,0.00058592,37522.0,37521.0,2.103485]
[1643828885908,0.27832607,37532.0,37521.0,2.103485]
[1643828886115,0.27832607,37532.0,37530.0,0.08294165]
[1643828886309,0.27832607,37532.0,37530.0,0.13294165]
[1643828886509,0.47252202,37535.0,37530.0,0.13294165]
[1643828886712,0.353485,37534.0,37530.0,0.13294165]
[1643828887510,0.35407086,37534.0,37530.0,0.13294165]
[1643828887814,0.26425528,37534.0,37530.0,0.13294165]
[1643828888210,0.26425528,37534.0,37529.0,0.15]
[1643828888211,0.353485,37533.0,37529.0,0.15]
[1643828888410,0.26366942,37534.0,37529.0,0.05]
[1643828888611,0.49493856,37534.0,37529.0,0.2]
[1643828889055,0.31419565,37534.0,37529.0,0.2]
[1643828889354,0.353485,37533.0,37532.0,0.08306632]
[1643828889556,0.54275099,37533.0,37529.0,0.2]
[1643828889756,0.18979222,37533.0,37529.0,0.2]
[1643828890160,0.353485,37532.0,37529.0,0.05]
[1643828890361,0.21614066,37531.0,37529.0,0.05]
[1643828890657,0.82301385,37530.0,37529.0,0.05]
[1643828890857,0.87301385,37530.0,37529.0,0.05]
[1643828891256,1.11817082,37530.0,37529.0,0.05]
[1643828891461,0.56345931,37530.0,37529.0,0.05]
[1643828891659,0.22488091,37530.0,37529.0,0.05]
[1643828891858,0.044138,37530.0,37529.0,0.05]
[1643828892060,0.353485,37531.0,37529.0,0.05]
[1643828892258,0.00054627,37531.0,37529.0,0.05]
[1643828893099,0.19248467,37533.0,37529.0,0.05]
[1643828893299,0.43825713,37532.0,37529.0,0.05]
[1643828893500,0.08533308,37532.0,37529.0,0.05]
[1643828893899,0.5457466,37531.0,37529.0,0.05]
[1643828894102,0.044138,37530.0,37529.0,0.05]
[1643828894304,0.19096478,37531.0,37529.0,0.05]
[1643828894502,0.353485,37530.0,37529.0,0.05]
[1643828894902,0.08533308,37532.0,37529.0,0.05]
[1643828895102,0.5453053,37531.0,37529.0,0.05]
[1643828895303,0.00013095,37530.0,37529.0,0.05]
[1643828895505,0.00013095,37530.0,37529.0,1.1]
[1643828895705,0.00013095,37530.0,37529.0,1.503485]
[1643828895903,0.00013095,37530.0,37529.0,1.603485]
[1643828896304,0.04770724,37534.0,37529.0,0.64605713]
[1643828896563,0.04770724,37534.0,37530.0,0.453485]
[1643828896767,0.04770724,37534.0,37531.0,0.64574044]
[1643828896965,0.04770724,37534.0,37532.0,0.353485]
[1643828897363,0.002,37535.0,37533.0,1.25043793]
[1643828897665,0.002,37535.0,37534.0,1.253675]
[1643828898067,0.002,37535.0,37534.0,1.303675]
[1643828898264,0.002,37535.0,37534.0,1.403675]
[1643828898664,0.002,37535.0,37534.0,0.503675]
[1643828898865,0.002,37535.0,37534.0,0.15]
[1643828899265,0.002,37535.0,37534.0,0.05]
[1643828899665,0.002,37535.0,37529.0,0.0196564]
[1643828899666,0.30796519,37530.0,37529.0,0.0196564]
[1643828900066,0.66164019,37530.0,37529.0,0.0196564]
[1643828900802,0.66164019,37530.0,37522.0,0.3911]
[1643828900999,0.19978838,37523.0,37522.0,0.3911]
[1643828901402,0.2482616,37529.0,37521.0,0.00246408]
[1643828901599,0.00229276,37525.0,37521.0,0.05]
[1643828902399,0.20505952,37525.0,37521.0,0.05]
[1643828902600,0.19178211,37524.0,37521.0,0.05]
[1643828902999,0.20276676,37525.0,37521.0,0.05]
[1643828903602,0.20276676,37525.0,37522.0,0.07794206]
[1643828903802,0.20276676,37525.0,37521.0,0.05]
[1643828904051,0.04770724,37526.0,37521.0,0.05]
[1643828905052,0.04770724,37526.0,37522.0,0.09054121]
[1643828905252,0.04770724,37526.0,37522.0,0.14054121]
[1643828905652,0.00014018,37523.0,37522.0,0.14054121]
[1643828905854,0.00014018,37523.0,37522.0,0.49421621]
[1643828906056,0.00014018,37523.0,37522.0,0.353675]
[1643828906256,0.00014018,37523.0,37521.0,0.15]
[1643828906654,0.00014018,37523.0,37521.0,0.05]
[1643828907053,0.00014018,37523.0,37522.0,0.903675]
[1643828907256,0.00014018,37523.0,37522.0,1.053675]
[1643828907453,0.00014018,37523.0,37522.0,1.1518662]
[1643828907706,0.00014018,37523.0,37522.0,1.053675]
[1643828909306,0.00014018,37523.0,37522.0,1.85264684]
[1643828910307,0.04784742,37526.0,37522.0,1.85264684]
[1643828910508,0.04784742,37526.0,37523.0,0.1]
[1643828912755,0.10149022,37524.0,37523.0,0.1]
[1643828913357,0.04784742,37526.0,37522.0,0.55]
[1643828913658,0.04784742,37526.0,37523.0,0.1]
[1643828914357,0.04784742,37526.0,37525.0,1.80090563]
[1643828914558,0.04784742,37526.0,37525.0,2.15458063]
[1643828914757,0.04784742,37526.0,37525.0,2.25458063]
[1643828915409,0.00014018,37526.0,37525.0,2.25458063]
[1643828915813,0.00014018,37526.0,37525.0,1.91802235]
[1643828918014,0.19049106,37532.0,37526.0,1.35]
[1643828918314,0.19049106,37532.0,37527.0,0.1]
[1643828918613,0.24049106,37532.0,37527.0,0.1]
[1643828918814,0.24049106,37532.0,37519.0,0.133263]
[1643828919056,0.24049106,37532.0,37518.0,0.01]
[1643828919057,0.57906946,37532.0,37518.0,0.01]
[1643828919261,0.3385784,37529.0,37518.0,0.01]
[1643828919460,0.27662561,37519.0,37518.0,0.01]
[1643828919858,0.36175525,37519.0,37518.0,0.01]
[1643828920261,0.08512964,37519.0,37518.0,0.41]
[1643828921260,0.08512964,37519.0,37518.0,0.56]
[1643828921860,0.08512964,37519.0,37518.0,0.16]
[1643828921861,0.27730506,37519.0,37518.0,0.16]
[1643828922259,0.27730506,37519.0,37518.0,0.06]
[1643828922704,0.27730506,37519.0,37518.0,0.01]
[1643828923505,0.19217542,37519.0,37518.0,0.01]
[1643828924707,0.18907807,37519.0,37518.0,0.01]
[1643828924908,0.2315984,37520.0,37518.0,0.01]
[1643828925309,0.0001251,37519.0,37518.0,0.01]
[1643828926312,0.0001251,37519.0,37509.0,0.233298]
[1643828926552,0.0001251,37519.0,37511.0,0.0024807]
[1643828927156,0.0001251,37519.0,37504.0,0.266628]
[1643828927352,0.0001251,37519.0,37512.0,0.27236852]
[1643828927554,0.0001251,37519.0,37514.0,0.07653426]
[1643828928156,0.0001251,37519.0,37514.0,0.12653426]
[1643828928354,0.0001251,37519.0,37515.0,0.00017832]
[1643828929456,0.0001251,37519.0,37514.0,0.17653426]
[1643828929660,0.0001251,37519.0,37515.0,0.00017832]
[1643828930501,0.0001251,37519.0,37514.0,0.22653426]
[1643828930704,0.0001251,37519.0,37515.0,0.00058679]
[1643828931702,0.0001251,37519.0,37514.0,0.22653426]
[1643828931902,0.0001251,37519.0,37515.0,0.066645]
[1643828932102,0.0001251,37519.0,37516.0,0.353675]
[1643828932308,0.0001251,37519.0,37518.0,0.73562671]
[1643828932503,0.0001251,37519.0,37518.0,1.08930171]
[1643828932803,0.0001251,37519.0,37518.0,1.18930171]
[1643828933606,0.0001251,37519.0,37518.0,1.23930171]
[1643828933957,0.0001251,37519.0,37518.0,1.78930171]
[1643828934759,0.05,37520.0,37518.0,1.78930171]
[1643828934760,0.05,37520.0,37519.0,1.6]
[1643828934762,0.0498371,37520.0,37519.0,1.6]
[1643828934962,0.0498371,37520.0,37519.0,2.020312]
[1643828935159,0.0498371,37520.0,37519.0,2.170312]
[1643828935361,0.0001629,37522.0,37520.0,0.07477687]
[1643828935560,0.0001629,37522.0,37521.0,1.303675]
[1643828935860,0.0001629,37522.0,37521.0,0.15]
[1643828936060,0.0001629,37522.0,37521.0,0.65]
[1643828936460,0.0498371,37524.0,37521.0,0.65]